bitfinex/quotes_ETHUSD_20251019
["timestamp","ask_amount","ask_price","bid_price","bid_amount"]
[1760892715348,7.99487275,3992.0,3991.9,0.002]
[1760892715551,4.74987275,3992.0,3991.9,0.002]
[1760892715855,7.99487275,3992.0,3991.9,0.002]
[1760892717601,4.74987275,3992.0,3991.9,0.002]
[1760892717802,7.99387275,3992.0,3991.9,0.002]
[1760892718667,2.50492244,3992.2,3991.9,0.4648]
[1760892718873,1.728,3992.0,3991.9,0.002]
[1760892719181,1.728,3992.0,3991.9,0.4648]
[1760892719379,1.728,3992.0,3991.9,0.002]
[1760892719586,4.47761002,3992.0,3991.9,0.002]
[1760892719765,4.23301002,3992.0,3991.9,0.002]
[1760892720395,2.50463884,3992.6,3991.9,0.002]
[1760892720396,0.75313397,3993.2,3991.9,0.4648]
[1760892720596,0.1248,3992.0,3991.9,0.90350067]
[1760892721097,0.1248,3992.0,3991.9,0.002]
[1760892721396,2.62981002,3992.0,3991.9,0.002]
[1760892722165,6.80351676,3992.0,3991.9,0.002]
[1760892722574,6.55201676,3992.0,3991.9,0.002]
[1760892723090,2.62981002,3992.0,3991.9,0.002]
[1760892723391,5.87381002,3992.0,3991.9,0.002]
[1760892724506,3.3688,3992.0,3991.9,0.002]
[1760892724708,5.87381002,3992.0,3991.9,0.002]
[1760892725296,3.3688,3992.0,3991.9,0.002]
[1760892728209,0.1248,3992.0,3991.9,0.002]
[1760892728447,3.3688,3992.0,3991.9,0.002]
[1760892728612,3.3688,3992.0,3991.9,0.433]
[1760892729225,0.1248,3992.0,3991.9,0.433]
[1760892729424,3.3688,3992.0,3991.9,0.433]
[1760892730482,0.1248,3992.0,3991.9,0.433]
[1760892730679,3.3688,3992.0,3991.9,0.433]
[1760892730882,0.1248,3992.0,3991.9,0.002]
[1760892731119,6.13679057,3992.0,3991.9,0.002]
[1760892731611,6.38829057,3992.0,3991.9,0.002]
[1760892731786,6.12531002,3992.0,3991.9,0.002]
[1760892731987,5.87381002,3992.0,3991.9,0.002]
[1760892732586,2.62981002,3992.0,3991.9,0.002]
[1760892732788,3.3688,3992.0,3991.9,0.002]
[1760892733488,3.3678,3992.0,3991.9,0.4418]
[1760892733689,0.1248,3992.0,3991.9,0.4418]
[1760892734106,0.1248,3992.0,3991.9,0.002]
[1760892734297,3.3678,3992.0,3991.9,0.002]
[1760892735289,5.87281002,3992.0,3991.9,0.002]
[1760892735490,6.12431002,3992.0,3991.9,0.002]
[1760892735819,2.88131002,3992.0,3991.9,0.002]
[1760892735987,5.87281002,3992.0,3991.9,0.002]
[1760892737389,6.12431002,3992.0,3991.9,0.002]
[1760892737630,5.87281002,3992.0,3991.9,0.002]
[1760892739292,6.98723002,3992.0,3991.9,0.002]
[1760892740533,0.1248,3992.0,3991.9,0.002]
[1760892740702,2.50475265,3992.5,3991.9,0.4418]
[1760892741027,1.728,3992.3,3991.9,0.4418]
[1760892741416,2.72451038,3992.5,3992.0,0.4398]
[1760892741618,2.72451038,3992.5,3991.4,2.5053853]
[1760892741619,2.50538658,3991.4,3991.1,0.002]
[1760892741932,4.23351212,3991.2,3991.1,0.002]
[1760892742131,7.47651212,3991.2,3991.1,0.002]
[1760892742331,5.08496058,3991.2,3991.1,0.002]
[1760892742531,8.69396058,3991.2,3991.1,0.002]
[1760892743032,9.32756058,3991.2,3991.1,0.002]
[1760892743601,8.93997284,3990.7,3989.3,0.4398]
[1760892743800,12.18297284,3990.7,3989.3,0.4398]
[1760892744002,13.01740691,3990.7,3989.3,0.4398]
[1760892744399,2.19553407,3990.7,3990.3,0.1776]
[1760892744612,7.91662604,3990.7,3990.1,0.1776]
[1760892745337,2.1678,3990.7,3990.1,0.1776]
[1760892745541,5.4108,3990.7,3990.6,0.4418]
[1760892746307,1.728,3990.7,3990.6,0.4418]
[1760892746720,4.23382604,3990.7,3990.6,0.002]
[1760892747319,4.971,3990.7,3990.6,0.002]
[1760892747516,7.47682604,3990.7,3990.6,0.002]
[1760892748425,1.728,3990.7,3990.6,0.4418]
[1760892748923,1.728,3990.7,3990.6,0.002]
[1760892749118,4.23382604,3990.7,3990.6,0.002]
[1760892749324,5.64205253,3990.7,3990.6,0.002]
[1760892749519,8.88505253,3990.7,3990.6,0.002]
[1760892751546,8.51925253,3990.7,3990.6,0.002]
[1760892751745,13.22539933,3990.7,3990.6,0.002]
[1760892751946,13.59119933,3990.7,3990.6,0.002]
[1760892752149,13.59119933,3990.7,3990.6,0.022]
[1760892752528,14.22479933,3990.7,3990.6,0.022]
[1760892752730,14.32528177,3990.7,3990.6,0.022]
[1760892754519,11.08228177,3990.7,3990.6,1e-08]
[1760892754725,14.32528177,3990.7,3990.6,1e-08]
[1760892755357,14.32528177,3990.7,3990.2,0.002]
[1760892755358,2.3616,3990.6,3990.2,0.002]
[1760892755534,8.94022403,3990.3,3990.2,0.002]
[1760892755746,12.18322403,3990.3,3990.2,0.002]
[1760892755946,12.54902403,3990.3,3990.2,0.002]
[1760892756135,13.30276352,3990.3,3990.2,0.002]
[1760892760764,10.05976352,3990.3,3990.2,0.002]
[1760892760977,14.34519001,3990.3,3990.2,0.002]
[1760892762639,2.50688821,3989.1,3988.6,0.4598]
[1760892762876,5.74988821,3989.1,3988.7,0.4598]
[1760892763057,5.74988821,3989.1,3988.3,2.50727801]
[1760892763058,0.1248,3988.7,3988.3,2.50727801]
[1760892763258,3.243,3989.1,3987.8,0.1041]
[1760892763473,3.243,3989.1,3988.4,2.50723622]
[1760892763640,3.243,3989.1,3988.5,0.4598]
[1760892763972,3.4492,3989.1,3988.5,0.4598]
[1760892764350,3.243,3989.1,3988.5,2.96700097]
[1760892764545,3.243,3989.1,3988.6,0.4598]
[1760892766773,3.26044831,3989.3,3988.6,0.4598]
[1760892766972,3.243,3989.1,3988.6,0.4598]
[1760892767172,3.26044831,3989.3,3988.6,0.4598]
[1760892767370,3.243,3989.1,3988.6,2.96694055]
[1760892767570,3.243,3989.1,3988.3,2.50732846]
[1760892767773,3.243,3989.1,3988.5,2.50720519]
[1760892768079,3.243,3989.1,3988.6,2.96694339]
[1760892768244,3.243,3989.1,3988.7,0.4598]
[1760892768445,3.243,3989.1,3988.8,0.4598]
[1760892768941,3.243,3989.1,3988.9,0.4598]
[1760892771081,0.75373949,3989.3,3988.9,0.4598]
[1760892771288,0.1248,3988.9,3988.8,2.50701965]
[1760892771866,0.1248,3988.9,3988.8,2.96681965]
[1760892778288,0.377,3990.7,3988.8,2.99188984]
[1760892778499,0.1248,3989.5,3989.4,2.5066426]
[1760892778866,0.1248,3989.5,3989.4,2.9664426]
[1760892779076,0.1248,3989.5,3989.4,3.60986686]
[1760892783212,0.001,3990.7,3989.9,2.50632693]
[1760892783360,0.001,3990.7,3990.6,2.50588883]
[1760892783556,0.001,3990.7,3990.6,2.69468883]
[1760892783777,0.001,3990.7,3990.6,3.15448883]
[1760892783980,0.001,3990.7,3990.6,4.04473862]
[1760892784571,0.001,3990.7,3990.6,3.58493862]
[1760892784783,0.001,3990.7,3990.6,4.04473862]
[1760892785812,0.001,3990.7,3990.6,4.0697975]
[1760892786111,0.001,3990.7,3990.6,4.04473862]
[1760892786310,0.001,3990.7,3990.6,4.0697975]
[1760892787311,0.001,3990.7,3990.6,4.04473862]
[1760892787479,0.001,3990.7,3990.6,4.0697975]
[1760892788314,0.001,3990.7,3990.6,4.04473862]
[1760892789014,0.001,3990.7,3990.6,4.0697975]
[1760892790093,0.001,3990.7,3990.6,4.67833862]
[1760892790611,0.001,3990.7,3990.6,6.40633862]
[1760892791616,0.001,3990.7,3990.6,5.94653862]
[1760892791817,0.001,3990.7,3990.6,5.74588883]
[1760892792198,0.001,3990.7,3990.6,6.18498883]
[1760892792825,0.001,3990.7,3990.6,5.74588883]
[1760892795992,0.456,3990.7,3990.6,5.74588883]
[1760892796900,0.001,3990.7,3990.6,5.74588883]
[1760892799110,0.001,3990.7,3990.6,11.32450674]
[1760892801161,0.001,3990.7,3990.6,11.44930674]
[1760892802931,0.001,3990.7,3990.6,7.52718962]
[1760892803344,0.001,3990.7,3990.6,8.16078962]
[1760892810357,0.001,3990.7,3990.6,7.72168962]
[1760892810722,0.001,3990.7,3990.6,8.16078962]
[1760892812165,0.001,3990.7,3990.6,11.64380674]
[1760892817375,0.001,3990.7,3990.6,12.09460674]
[1760892820987,0.001,3990.7,3990.6,11.64380674]
[1760892822039,0.001,3990.7,3990.6,12.09460674]
[1760892822462,0.001,3990.7,3990.6,11.64380674]
[1760892828593,0.001,3990.7,3990.6,3.84808962]
[1760892828761,0.4507,3990.7,3990.6,5.86568883]
[1760892832407,0.4507,3990.7,3990.6,3.3598]
[1760892832573,0.4507,3990.7,3990.6,3.235]
[1760892832775,0.4507,3990.7,3990.6,5.74088883]
[1760892834794,0.4507,3990.7,3990.6,3.235]
[1760892835685,0.4507,3990.7,3990.5,2.5059456]
[1760892836015,0.4507,3990.7,3990.6,2.50588883]
[1760892836016,0.001,3990.7,3990.6,2.50588883]
[1760892836319,0.001,3990.7,3990.4,5.74100442]
[1760892836479,0.4497,3990.6,3990.4,3.235]
[1760892836815,0.001,3990.7,3990.4,3.235]
[1760892836816,0.001,3990.7,3990.5,2.50595163]
[1760892837183,0.001,3990.7,3990.6,2.50588883]
[1760892837382,0.001,3990.7,3990.5,2.50593522]
[1760892837607,0.001,3990.7,3990.6,2.50588883]
[1760892838408,0.4507,3990.7,3990.6,2.50588883]
[1760892839989,0.001,3990.7,3990.6,2.50588883]
[1760892840220,0.4507,3990.7,3990.1,0.002]
[1760892840423,0.45645171,3990.6,3990.1,0.002]
[1760892840885,0.4497,3990.5,3990.1,0.002]
[1760892841324,0.001,3990.7,3990.1,0.002]
[1760892841511,0.4497,3990.6,3990.1,2.50818847]
[1760892841703,0.4497,3990.5,3990.3,2.5060302]
[1760892841906,0.4497,3990.5,3990.3,5.7400302]
[1760892842096,0.4497,3990.4,3990.3,5.7400302]
[1760892843332,0.001,3990.7,3990.3,5.7400302]
[1760892843640,0.1248,3990.5,3990.4,2.50601443]
[1760892845851,0.1248,3990.5,3990.3,3.234]
[1760892846149,0.1248,3990.5,3990.4,3.234]
[1760892846353,0.001,3990.7,3990.4,3.234]
[1760892846552,0.44363414,3990.7,3990.4,3.234]
[1760892846859,0.4497,3990.6,3990.4,3.234]
[1760892847045,0.44363414,3990.7,3990.4,3.234]
[1760892847233,0.4497,3990.5,3990.4,3.234]
[1760892851580,0.44363414,3990.7,3990.5,2.50595163]
[1760892851581,0.001,3990.7,3990.5,2.50595163]
[1760892851863,0.1248,3990.5,3990.4,3.6709]
[1760892852557,0.1248,3990.5,3990.4,7.23157381]
[1760892852765,0.1248,3990.5,3990.4,7.20651367]
[1760892854733,0.001,3990.7,3990.6,2.50588883]
[1760892855334,0.001,3990.7,3990.6,2.94278883]
[1760892858361,0.001,3990.7,3990.6,2.96784771]
[1760892858556,0.001,3990.7,3990.6,5.28386168]
[1760892858762,0.001,3990.7,3990.6,5.40866168]
[1760892862068,0.001,3990.7,3990.6,2.50588883]
[1760892862260,0.4061,3990.7,3990.6,5.73788883]
[1760892863366,0.5309,3990.7,3990.6,5.73788883]
[1760892865811,4.5309,3990.7,3990.6,5.73788883]
[1760892866999,4.1258,3990.7,3990.6,5.73788883]
[1760892867203,4.5309,3990.7,3990.6,5.73788883]
[1760892867788,4.1258,3990.7,3990.6,5.73788883]
[1760892875921,4.5433,3990.7,3990.6,5.73788883]
[1760892876998,4.1258,3990.7,3990.6,5.73788883]
[1760892877800,4.5433,3990.7,3990.6,5.73788883]
[1760892879527,4.4433,3990.7,3990.6,5.73788883]
[1760892880119,4.0258,3990.7,3990.6,5.73788883]
[1760892880630,4.4433,3990.7,3990.1,0.002]
[1760892880926,4.4433,3990.7,3990.6,2.50588883]
[1760892880927,4.0,3990.7,3990.6,2.50588883]
[1760892881430,4.1248,3990.7,3990.6,2.93508883]
[1760892882427,4.1248,3990.7,3990.6,2.50588883]
[1760892882601,4.0,3990.7,3990.6,2.93508883]
[1760892883533,4.0,3990.7,3990.6,2.50588883]
[1760892883735,4.0,3990.7,3990.6,4.28521413]
[1760892886423,4.0,3990.7,3990.6,3.85601413]
[1760892888365,4.0,3990.7,3990.6,4.28521413]
[1760892888847,4.0,3990.7,3990.6,3.85601413]
[1760892890364,4.001,3990.7,3990.6,3.85601413]
[1760892895482,4.001,3990.7,3990.6,4.28521413]
[1760892896500,4.001,3990.7,3990.6,3.85601413]
[1760892901781,4.001,3990.7,3990.6,2.50588883]
[1760892901980,4.4185,3990.7,3990.6,2.50588883]
[1760892906788,4.4185,3990.7,3990.6,2.50788883]
[1760892908287,4.4185,3990.7,3990.6,5.73188883]
[1760892908991,4.001,3990.7,3990.6,5.73188883]
[1760892912903,4.4244,3990.7,3990.6,5.73188883]
[1760892920977,4.001,3990.7,3990.6,5.73188883]
[1760892923502,4.001,3990.7,3990.6,6.18528883]
[1760892923707,4.001,3990.7,3990.6,7.44667304]
[1760892924904,4.001,3990.7,3990.6,6.99327304]
[1760892925071,4.001,3990.7,3990.6,7.44667304]
[1760892926086,4.001,3990.7,3990.6,6.99327304]
[1760892926301,4.001,3990.7,3990.6,7.44667304]
[1760892929582,4.001,3990.7,3990.6,6.99327304]
[1760892934816,4.001,3990.7,3990.6,7.44667304]
[1760892935226,4.001,3990.7,3990.6,6.99327304]
[1760892940913,4.001,3990.7,3990.6,7.44187304]
[1760892941117,4.001,3990.7,3990.6,6.99327304]
[1760892948331,4.001,3990.7,3990.6,5.73188883]
[1760892951815,4.001,3990.7,3990.6,6.18048883]
[1760892952017,4.001,3990.7,3990.6,5.73188883]
[1760892960169,4.001,3990.7,3990.6,6.18048883]
[1760892960352,4.001,3990.7,3990.6,6.93888883]
[1760892960353,1e-08,3990.7,3990.6,6.93888883]
[1760892960523,1e-08,3990.7,3990.6,8.27563304]
[1760892961026,1e-08,3990.7,3990.6,8.37604787]
[1760892961336,1e-08,3990.7,3990.6,10.10404787]
[1760892967656,0.001,3991.3,3991.2,4.86711212]
[1760892967657,1e-08,3991.3,3991.2,4.86711212]
[1760892967961,1e-08,3991.3,3991.2,15.92526342]
[1760892968174,1e-08,3991.3,3991.2,16.48326342]
[1760892968327,1e-08,3991.3,3991.2,16.88976342]
[1760892968527,1e-08,3991.3,3991.2,16.48326342]
[1760892968742,1e-08,3991.3,3991.2,18.44696725]
[1760892970391,0.1863,3992.5,3992.4,2.50475904]
[1760892970672,0.591,3992.5,3992.4,9.64033469]
[1760892970857,0.591,3992.5,3992.4,9.76513469]
[1760892971267,0.591,3992.5,3991.6,0.8487]
[1760892971268,4.51357565,3992.5,3991.4,2.50537931]
[1760892971430,0.2183,3991.5,3991.4,2.50538658]
[1760892971786,0.629,3991.5,3991.4,2.50538658]
[1760892972581,0.629,3991.5,3991.3,5.71743125]
[1760892972765,0.4107,3991.4,3991.3,3.212]
[1760892972966,0.4107,3991.4,3991.3,5.71744935]
[1760892976155,0.4107,3991.4,3991.3,5.66744935]
[1760892982510,0.3431,3991.5,3991.3,5.66744935]
[1760892982806,0.1248,3991.9,3991.4,0.81730178]
[1760892983020,0.1863,3992.5,3992.4,2.50475904]
[1760892983175,0.597,3992.5,3992.4,2.50475904]
[1760892983871,0.1248,3992.4,3992.2,5.71483003]
[1760892984072,0.4107,3992.3,3992.2,5.71483003]
[1760892990310,0.4107,3992.3,3991.6,4.82984243]
[1760892990508,0.4107,3992.3,3988.9,0.253]
[1760892990509,2.50582604,3990.7,3990.2,0.002]
[1760892990711,4.48440864,3990.7,3990.2,0.002]
[1760892990925,4.91190864,3990.7,3990.2,0.002]
[1760892991099,2.50607723,3990.3,3990.2,0.002]
[1760892991501,2.93157723,3990.3,3990.2,0.002]
[1760892993816,0.4255,3990.3,3990.2,0.002]
[1760892994316,0.96924122,3990.3,3990.2,0.002]
[1760892995078,3.6345,3990.3,3990.2,0.002]
[1760892995805,0.4255,3990.3,3990.2,0.002]
[1760892996011,3.6345,3990.3,3990.2,0.002]
[1760893000021,0.4255,3990.3,3990.2,0.002]
[1760893000210,3.6345,3990.3,3990.2,0.002]
[1760893000404,1.0395515,3990.3,3990.2,0.002]
[1760893000608,3.6345,3990.3,3990.2,0.002]
[1760893002224,9.36461966,3990.3,3990.2,0.002]
[1760893002426,12.67409503,3990.3,3990.2,0.002]
[1760893002627,13.43670889,3990.3,3990.2,0.002]
[1760893007016,13.43570889,3990.3,3990.2,0.002]
[1760893007725,2.50675777,3989.3,3988.4,2.93822261]
[1760893007923,3.209,3989.2,3988.4,2.93822261]
[1760893008424,3.209,3989.2,3988.5,2.50720501]
[1760893008800,5.71577542,3989.2,3988.5,2.50720501]
[1760893010439,3.208,3989.1,3988.5,2.50720501]
[1760893010734,3.208,3989.1,3988.6,2.50714412]
[1760893010735,3.82565171,3989.1,3988.6,2.50714412]
[1760893011035,3.82565171,3989.1,3988.6,2.97614412]
[1760893011941,3.82565171,3989.1,3988.6,0.469]
[1760893012809,0.1248,3988.6,3988.5,2.50719312]
[1760893013009,0.1248,3988.6,3988.5,2.97619312]
[1760893013911,0.1248,3988.6,3988.5,2.50719312]
[1760893014210,0.1248,3988.6,3988.5,2.97619312]
[1760893018708,0.1248,3988.6,3988.5,2.50719312]
[1760893030055,0.1248,3988.6,3988.4,0.002]
[1760893030225,3.208,3988.8,3988.4,0.002]
[1760893030547,0.38624,3988.7,3988.4,2.50925986]
[1760893030742,0.4385,3988.7,3988.4,2.50925986]
[1760893031053,0.4385,3988.7,3988.5,2.50719632]
[1760893031255,0.4385,3988.7,3988.4,2.50925218]
[1760893032740,3.208,3988.8,3988.4,2.50925218]
[1760893032945,0.4385,3988.7,3988.4,2.50925218]
[1760893033952,0.6522,3988.9,3988.4,2.50925218]
[1760893034156,3.206,3988.8,3988.4,2.50925218]
[1760893034867,3.6445,3988.8,3988.4,0.002]
[1760893035367,3.206,3988.8,3988.4,2.50926822]
[1760893035556,0.4385,3988.7,3988.4,2.50926822]
[1760893036975,3.206,3988.6,3988.4,2.50926822]
[1760893037773,3.206,3988.7,3988.5,2.50720822]
[1760893037973,0.001,3989.2,3988.4,3.92976325]
[1760893038176,3.205,3989.1,3988.7,2.5070233]
[1760893038538,3.205,3989.1,3988.7,2.9654233]
[1760893039043,3.205,3989.1,3988.8,2.50699923]
[1760893039866,0.001,3989.2,3988.7,2.96546764]
[1760893040074,0.1248,3988.8,3988.7,2.96546764]
[1760893043093,0.1248,3988.8,3988.7,2.50706764]
[1760893044385,0.1258,3988.8,3988.7,2.50706764]
[1760893046398,0.1258,3988.8,3988.7,2.96546764]
[1760893047069,0.1258,3988.8,3988.7,2.50706764]
[1760893048401,0.1258,3988.8,3988.7,3.51293405]
[1760893055942,0.1258,3988.8,3988.7,3.05453405]
[1760893057304,0.1258,3988.8,3988.7,2.50706764]
[1760893063538,0.1258,3988.8,3988.7,2.97136764]
[1760893064240,0.1258,3988.8,3988.7,2.50706764]
[1760893067646,0.1258,3988.8,3988.7,2.97136764]
[1760893071748,0.1258,3988.8,3988.7,2.50706764]
[1760893071956,4.70036325,3988.8,3988.4,0.002]
[1760893072196,0.51066129,3988.7,3988.4,0.002]
[1760893072567,0.6478,3988.8,3988.4,0.002]
[1760893072568,0.2156,3988.8,3988.4,0.002]
[1760893072771,0.4322,3988.7,3988.4,0.002]
[1760893073303,0.4322,3988.6,3988.4,2.50926954]
[1760893074504,0.1248,3988.5,3988.4,0.002]
[1760893074662,0.1248,3988.5,3988.4,6.90132048]
[1760893074865,0.1248,3988.5,3988.4,8.1761984]
[1760893076295,0.1248,3988.5,3988.4,7.7118984]
[1760893077193,0.1258,3988.8,3988.7,2.5070825]
[1760893085214,0.5635,3988.8,3988.7,2.5070825]
[1760893085916,0.1258,3988.8,3988.7,2.5070825]
[1760893087232,0.5635,3988.8,3988.7,2.5070825]
[1760893088981,0.1258,3988.8,3988.7,2.5070825]
[1760893089191,0.5612,3988.8,3988.7,2.5070825]
[1760893090139,0.5612,3988.8,3988.5,3.2]
[1760893090440,0.4354,3988.7,3988.5,5.70719219]
[1760893090642,0.1258,3988.8,3988.5,3.2]
[1760893090839,0.4354,3988.6,3988.5,3.2]
[1760893091292,0.1248,3988.5,3988.4,0.002]
[1760893091730,0.5602,3988.5,3988.4,0.002]
[1760893096331,0.8670232,3988.5,3988.4,0.002]
[1760893097025,0.5602,3988.5,3988.4,0.002]
[1760893104543,9.38408778,3988.5,3988.4,0.002]
[1760893104744,6.97740341,3988.5,3988.4,0.002]
[1760893104960,0.10052385,3988.5,3988.4,0.002]
[1760893105119,3.199,3988.7,3988.4,0.4573]
[1760893105328,0.001,3988.8,3988.4,2.96456034]
[1760893105645,0.001,3988.8,3988.5,2.50719063]
[1760893106409,0.001,3988.8,3988.6,2.50713046]
[1760893107348,0.001,3988.8,3988.5,2.96249743]
[1760893108417,0.001,3988.8,3988.5,0.4553]
[1760893108742,0.001,3988.8,3988.6,2.50709238]
[1760893109043,0.001,3988.8,3988.7,2.5070825]
[1760893114068,0.001,3988.8,3988.7,2.9623825]
[1760893115817,0.001,3988.8,3988.7,3.05424009]
[1760893116052,0.001,3988.8,3988.7,3.50294009]
[1760893117673,0.001,3988.8,3988.7,3.05424009]
[1760893118072,0.4343,3988.8,3988.4,3.2]
[1760893118476,0.1248,3988.6,3988.5,2.50720822]
[1760893132200,0.1248,3988.6,3988.4,3.2]
[1760893132404,0.4225,3988.5,3988.4,2.50922314]
[1760893136213,0.1248,3988.6,3988.5,2.50720822]
[1760893136618,0.5473,3988.6,3988.5,2.50720822]
[1760893136990,0.1248,3988.6,3988.5,2.50720822]
[1760893137411,0.5473,3988.6,3988.5,2.50720822]
[1760893138532,0.1248,3988.6,3988.5,2.50720822]
[1760893143038,0.1258,3988.6,3988.5,2.50720822]
[1760893144739,0.1258,3988.6,3988.4,0.002]
[1760893144740,0.4235,3988.6,3988.4,0.002]
[1760893145066,2.72245822,3988.5,3988.4,0.002]
[1760893145459,3.14495822,3988.5,3988.4,0.002]
[1760893145656,3.2454798,3988.5,3988.4,0.002]
[1760893146165,0.73827158,3988.5,3988.4,0.002]
[1760893146371,3.2454798,3988.5,3988.4,0.002]
[1760893147160,6.4404798,3988.5,3988.4,0.002]
[1760893147958,3.2454798,3988.5,3988.4,0.002]
[1760893148161,13.51555936,3988.5,3988.4,0.002]
[1760893150455,24.09468336,3988.5,3988.4,0.002]
[1760893150685,22.78775136,3988.5,3988.4,0.002]
[1760893151386,22.83143534,3988.5,3988.4,0.002]
[1760893151573,24.77349634,3988.5,3988.4,0.002]
[1760893151752,8.81998982,3988.2,3988.1,0.002]
[1760893151958,8.29637882,3988.2,3988.1,0.002]
[1760893152151,8.71887882,3988.2,3988.1,0.002]
[1760893152587,10.45661482,3988.2,3988.1,0.002]
[1760893153688,5.29149682,3988.2,3988.1,0.002]
[1760893153892,10.73140667,3988.2,3988.1,0.002]
[1760893154198,10.68771982,3988.2,3988.1,0.002]
[1760893154794,14.66390382,3988.2,3988.1,0.002]
[1760893155315,14.76444991,3988.2,3988.1,0.002]
[1760893155662,15.46795791,3988.2,3988.1,0.002]
[1760893156004,13.39777091,3988.2,3988.1,0.002]
[1760893156672,12.51804151,3988.2,3988.1,0.002]
[1760893156898,17.91133451,3988.2,3988.1,0.002]
[1760893157527,17.67824822,3988.2,3988.1,0.002]
[1760893157826,17.12800251,3988.2,3988.1,0.002]
[1760893158021,18.42112651,3988.2,3988.1,0.002]
[1760893159214,18.51593851,3988.2,3988.1,0.002]
[1760893159823,15.51761751,3988.2,3988.1,0.002]
[1760893159985,12.51804151,3988.2,3988.1,0.002]
[1760893160387,17.05519051,3988.2,3988.1,0.002]
[1760893161216,12.51804151,3988.2,3988.1,0.002]
[1760893161520,20.79290251,3988.2,3988.1,0.002]
[1760893162210,20.83658922,3988.2,3988.1,0.002]
[1760893162388,12.56172822,3988.2,3988.1,0.002]
[1760893162587,21.18069251,3988.2,3988.1,0.002]
[1760893162816,20.85293421,3988.2,3988.1,0.002]
[1760893163008,20.80924751,3988.2,3988.1,0.002]
[1760893163212,20.85293415,3988.2,3988.1,0.002]
[1760893163591,20.92918215,3988.2,3988.1,0.002]
[1760893163791,20.61854751,3988.2,3988.1,0.002]
[1760893164238,20.00569751,3988.2,3988.1,0.002]
[1760893164643,17.27129851,3988.2,3988.1,0.002]
[1760893165560,12.51804151,3988.2,3988.1,0.002]
[1760893165851,22.16744651,3988.2,3988.1,0.002]
[1760893166838,22.16745151,3988.2,3988.1,0.002]
[1760893167750,22.24410951,3988.2,3988.1,0.002]
[1760893168044,21.50995351,3988.2,3988.1,0.002]
[1760893168757,12.51804151,3988.2,3988.1,0.002]
[1760893169050,21.98449651,3988.2,3988.1,0.002]
[1760893169850,12.51804151,3988.2,3988.1,0.002]
[1760893170033,14.56437551,3988.2,3988.1,0.002]
[1760893170221,12.51804151,3988.2,3988.1,0.002]
[1760893170422,16.05965051,3988.2,3988.1,0.002]
[1760893170814,18.50376351,3988.2,3988.1,0.002]
[1760893171937,18.68442851,3988.2,3988.1,0.002]
[1760893172132,8.90054151,3988.2,3988.1,0.002]
[1760893172341,12.09454151,3988.2,3988.1,0.002]
[1760893173029,12.51704151,3988.2,3988.1,0.002]
[1760893173634,12.09454151,3988.2,3988.1,0.002]
[1760893174257,4.99385969,3988.1,3987.9,0.002]
[1760893174837,5.44775969,3988.1,3987.9,0.002]
[1760893175335,8.00815969,3988.1,3988.0,0.4304]
[1760893175585,8.05184583,3988.1,3988.0,0.002]
[1760893175739,8.00815969,3988.1,3988.0,0.002]
[1760893176365,4.14859195,3988.1,3988.0,0.002]
[1760893176666,7.88335969,3988.1,3988.0,0.4304]
[1760893177971,7.88335969,3988.1,3988.0,0.002]
[1760893178767,8.30585969,3988.1,3988.0,0.002]
[1760893179592,7.88335969,3988.1,3988.0,0.002]
[1760893181790,8.30585969,3988.1,3988.0,0.002]
[1760893182391,8.93945969,3988.1,3988.0,0.002]
[1760893182959,8.55965065,3988.1,3988.0,0.002]
[1760893183193,12.44695829,3988.1,3988.0,0.002]
[1760893183392,12.49064945,3988.1,3988.0,0.002]
[1760893183565,12.44695829,3988.1,3988.0,0.002]
[1760893184393,9.25395829,3988.1,3988.0,0.002]
[1760893184694,12.44695829,3988.1,3988.0,0.002]
[1760893185492,8.62035829,3988.1,3988.0,0.002]
[1760893185793,11.81335829,3988.1,3988.0,0.4304]
[1760893188083,11.81335829,3988.1,3988.0,0.002]
[1760893188285,2.1819,3988.1,3988.0,0.002]
[1760893188471,3.193,3988.2,3988.0,0.4304]
[1760893188667,3.193,3988.2,3988.1,0.1371]
[1760893188889,3.193,3988.2,3988.1,0.5655]
[1760893189987,3.193,3988.2,3988.1,0.1371]
[1760893190192,4.921,3988.2,3988.1,0.1371]
[1760893190705,7.42839682,3988.2,3988.1,0.1371]
[1760893192000,4.921,3988.2,3988.1,0.5655]
[1760893195915,4.92,3988.2,3988.1,0.5655]
[1760893197185,1.728,3988.2,3988.1,0.5655]
[1760893197514,4.92,3988.2,3988.1,0.5655]
[1760893198699,1.728,3988.2,3988.1,0.5655]
[1760893199014,4.92,3988.2,3988.1,0.5675]
[1760893199315,4.921,3988.2,3988.1,0.5675]
[1760893200596,1.729,3988.2,3988.1,0.5675]
[1760893200905,4.92,3988.2,3988.1,0.5675]
[1760893201082,1.729,3988.2,3988.1,3.07495969]
[1760893201284,1.729,3988.2,3988.1,3.38285566]
[1760893201285,0.001,3988.2,3988.1,3.38285566]
[1760893201897,0.1258,3988.2,3988.1,3.38285566]
[1760893204715,0.1258,3988.2,3988.1,0.44699597]
[1760893205024,0.1258,3988.2,3988.1,0.002]
[1760893205229,0.5483,3988.2,3988.1,0.002]
[1760893205391,8.71469542,3988.2,3988.1,0.002]
[1760893206296,5.0448,3988.2,3988.1,0.002]
[1760893206496,8.88505668,3988.2,3988.1,0.002]
[1760893206696,8.46255668,3988.2,3988.1,0.002]
[1760893207105,8.88505668,3988.2,3988.1,0.002]